lending/lending_fUSD_20240705
["ID","MTS","AMOUNT","RATE_DAILY","PERIOD"]
[331258830,1720167648219,-462.6228344,0.00046169,30]
[331258831,1720167648251,-152.59839612,0.00046169,30]
[331258832,1720167648276,-199.74954741,0.00046169,30]
[331258833,1720167648302,-150.0,0.00046197,30]
[331258834,1720167648328,-462.6228344,0.00046216,30]
[331258835,1720167648354,-152.59839612,0.00046216,30]
[331258836,1720167648380,-199.74954741,0.00046216,30]
[331258837,1720167648406,-150.0,0.00046221,30]
[331258838,1720167648432,-826.0,0.0004623,30]
[331258839,1720167648459,-462.6228344,0.00046264,30]
[331258840,1720167648485,-152.59839612,0.00046264,30]
[331258841,1720167648512,-199.74954741,0.00046264,30]
[331258842,1720167648537,-1040.66748,0.00046288,30]
[331258843,1720167648565,-365.63750826,0.00046301,76]
[331258844,1720167648595,-462.6228344,0.00046311,30]
[331258845,1720167648624,-152.59839612,0.00046311,30]
[331258846,1720167648655,-199.74954741,0.00046311,30]
[331258847,1720167648686,-462.6228344,0.00046358,30]
[331258848,1720167648712,-152.59839612,0.00046358,30]
[331258849,1720167648739,-199.74954741,0.00046358,30]
[331258850,1720167648766,-1000.0,0.00046364,60]
[331258851,1720167648791,-150.0,0.00046377,30]
[331258852,1720167648816,-462.6228344,0.00046405,30]
[331258853,1720167648844,-152.59839612,0.00046405,30]
[331258854,1720167648873,-199.74954741,0.00046405,30]
[331258855,1720167648899,-183.84444444,0.00046411,120]
[331258856,1720167648924,-150.0,0.00046442,30]
[331258857,1720167648950,-462.6228344,0.00046452,30]
[331258858,1720167648975,-152.59839612,0.00046452,30]
[331258859,1720167649000,-199.74954741,0.00046452,30]
[331258860,1720167649025,-1040.66748,0.00046488,30]
[331258861,1720167649052,-462.6228344,0.00046499,30]
[331258862,1720167649079,-152.59839612,0.00046499,30]
[331258863,1720167649105,-199.74954741,0.00046499,30]
[331258864,1720167649130,-177.5539,0.000465,120]
[331258865,1720167649159,-1093.09154948,0.000465,120]
[331258866,1720167649185,-150.0,0.00046532,30]
[331258867,1720167649351,-462.6228344,0.00046547,30]
[331258868,1720167649376,-152.59839612,0.00046547,30]
[331258869,1720167649403,-199.74954741,0.00046547,30]
[331258870,1720167649430,-244.14371221,0.0004656,30]
[331258871,1720167649458,-3000.0,0.00046575,120]
[331258872,1720167649484,-500.0,0.00046575,120]
[331258873,1720167649510,-2945.59,0.00046575,120]
[331258874,1720167649537,-462.6228344,0.00046594,30]
[331258875,1720167649563,-152.59839612,0.00046594,30]
[331258876,1720167649592,-199.74954741,0.00046594,30]
[331258877,1720167649619,-150.0,0.00046632,120]
[331258878,1720167649646,-462.6228344,0.00046641,30]
[331258879,1720167649672,-152.59839612,0.00046641,30]
[331258880,1720167649698,-199.74954741,0.00046641,30]
[331258881,1720167649724,-229.0,0.0004668,30]
[331258882,1720167649753,-223.0,0.0004668,30]
[331258883,1720167649779,-1040.66748,0.00046688,30]
[331258884,1720167649805,-152.0,0.00046688,60]
[331258885,1720167649831,-462.6228344,0.00046688,30]
[331258886,1720167649857,-152.59839612,0.00046688,30]
[331258887,1720167649882,-172.38010297,0.00046688,30]
[331258888,1720167649908,-164.57871388,0.00046688,30]
[331258889,1720167649935,-199.74954741,0.00046688,30]
[331258890,1720167649961,-183.35663249,0.00046688,30]
[331258891,1720167649987,-206.23404759,0.00046688,30]
[331258892,1720167650016,-179.90236788,0.00046688,30]
[331258893,1720167650042,-156.16949933,0.00046688,30]
[331258894,1720167650067,-151.91875465,0.00046688,30]
[331258895,1720167650093,-324.77342491,0.0004675,30]
[331258896,1720167650120,-495.71718931,0.0004675,120]
[331258897,1720167650151,-2326.50096672,0.0004688,30]
[331258898,1720167650178,-1000.0,0.00046999,120]
[331258899,1720167650206,-50000.0,0.00047,37]
[331258900,1720167650233,-50000.0,0.00047,47]
[331258901,1720167650260,-151.08921204,0.00047,120]
[331258902,1720167650285,-690.01582456,0.00047,120]
[331258903,1720167650310,-663.60719,0.00047,30]
[331258904,1720167650337,-265539.34527485,0.00047,120]
[331258905,1720167697575,-653.81542808,0.0003,30]
[331258906,1720167697652,-500.0,0.00039,120]
[331258907,1720167698137,-194.58267982,0.0004,30]
[331258908,1720167698367,-1245.78959232,0.000409,120]
[331258909,1720167698838,-1245.78959228,0.000409,120]
[331258910,1720167698864,-152.0,0.00041041,31]
[331258911,1720167698890,-317.62836377,0.0004152,30]
[331258912,1720167698916,-2000.0,0.00042068,30]
[331258913,1720167698941,-5000.0,0.000425,120]
[331258914,1720167698969,-2000.0,0.00042616,30]
[331258915,1720167698995,-5000.0,0.00042656,120]
[331258916,1720167699022,-400000.0,0.000427,120]
[331258917,1720167699053,-5000.0,0.00042812,120]
[331258918,1720167699080,-5000.0,0.00042969,120]
[331258919,1720167699108,-152.0,0.00043027,31]
[331258920,1720167699134,-5000.0,0.00043125,120]
[331258921,1720167699163,-2000.0,0.00043164,30]
[331258922,1720167699191,-2799.31,0.00043281,120]
[331258923,1720167699220,-2000.0,0.00043712,30]
[331258924,1720167699247,-269.575,0.00044069,30]
[331258925,1720167699274,-2000.0,0.0004426,30]
[331258926,1720167699303,-2000.0,0.00044808,30]
[331258927,1720167699328,-500.0,0.00044931,120]
[331258928,1720167699356,-152.0,0.00045014,31]
[331258929,1720167699383,-500.0,0.0004512,30]
[331258930,1720167699409,-500.0,0.0004512,30]
[331258931,1720167699437,-500.0,0.0004512,30]
[331258932,1720167699463,-500.0,0.0004512,30]
[331258933,1720167699489,-500.0,0.0004512,30]
[331258934,1720167699521,-500.0,0.0004512,30]
[331258935,1720167699547,-500.0,0.0004512,30]
[331258936,1720167699573,-500.0,0.0004512,30]
[331258937,1720167699728,-500.0,0.0004512,30]
[331258938,1720167699821,-500.0,0.0004512,30]
[331258939,1720167699847,-500.0,0.0004512,30]
[331258940,1720167699872,-500.0,0.0004512,30]
[331258941,1720167699899,-500.0,0.0004512,30]
[331258942,1720167699925,-500.0,0.0004512,30]
[331258943,1720167699952,-500.0,0.0004512,30]
[331258944,1720167699978,-500.0,0.0004512,30]
[331258945,1720167700005,-500.0,0.0004512,30]
[331258946,1720167700033,-500.0,0.0004512,30]
[331258947,1720167700062,-500.0,0.0004512,30]
[331258948,1720167700089,-500.0,0.0004512,30]
[331258949,1720167700115,-500.0,0.0004512,30]
[331258950,1720167700142,-500.0,0.0004512,30]
[331258951,1720167700169,-500.0,0.0004512,30]
[331258952,1720167700196,-500.0,0.0004512,30]
[331258953,1720167700221,-500.0,0.0004512,30]
[331258954,1720167700246,-500.0,0.0004512,30]
[331258955,1720167700272,-500.0,0.0004512,30]
[331258956,1720167700299,-500.0,0.0004512,30]
[331258957,1720167700324,-500.0,0.0004512,30]
[331258958,1720167700350,-500.0,0.0004512,30]
[331258959,1720167700375,-500.0,0.0004512,30]
[331258960,1720167700401,-500.0,0.0004512,30]
[331258961,1720167700426,-500.0,0.0004512,30]
[331258962,1720167700452,-500.0,0.0004512,30]
[331258963,1720167700673,-500.0,0.0004512,30]
[331258964,1720167700699,-500.0,0.0004512,30]
[331258965,1720167700725,-500.0,0.0004512,30]
[331258966,1720167700754,-500.0,0.0004512,30]
[331258967,1720167700782,-622.57397628,0.0004512,30]
[331258968,1720167700809,-500.0,0.0004512,30]
[331258969,1720167700836,-500.0,0.0004512,30]
[331258970,1720167700863,-500.0,0.0004512,30]
[331258971,1720167700889,-500.0,0.0004512,30]
[331258972,1720167700916,-500.0,0.0004512,30]
[331258973,1720167700944,-500.0,0.0004512,30]
[331258974,1720167700970,-500.0,0.0004512,30]
[331258975,1720167700996,-500.0,0.0004512,30]
[331258976,1720167701023,-500.0,0.0004512,30]
[331258977,1720167701050,-500.0,0.0004512,30]
[331258978,1720167701076,-500.0,0.0004512,30]
[331258979,1720167701102,-500.0,0.0004512,30]
[331258980,1720167701130,-500.0,0.0004512,30]
[331258981,1720167701161,-500.0,0.0004512,30]
[331258982,1720167701187,-500.0,0.0004512,30]
[331258983,1720167701213,-500.0,0.0004512,30]
[331258984,1720167701239,-500.0,0.0004512,30]
[331258985,1720167701264,-500.0,0.0004512,30]
[331258986,1720167701292,-500.0,0.0004512,30]
[331258987,1720167701319,-500.0,0.0004512,30]
[331258988,1720167701348,-500.0,0.0004512,30]
[331258989,1720167701376,-500.0,0.0004512,30]
[331258990,1720167701402,-500.0,0.0004512,30]
[331258991,1720167701429,-500.0,0.0004512,30]
[331258992,1720167701456,-500.0,0.0004512,30]
[331258993,1720167701485,-527.50095404,0.0004512,30]
[331258994,1720167701513,-267953.98864674,0.00045368,30]
[331258995,1720167701543,-604.09321258,0.00045479,120]
[331258996,1720167701568,-500.0,0.00045797,30]
[331258997,1720167701602,-500.0,0.00046484,30]
[331258998,1720167701631,-734460.65472515,0.00047,120]
[331258999,1720167701658,-10000.0,0.00047,120]
[331259000,1720167701686,-635.63,0.00047,30]
[331259001,1720167701711,-272.92700707,0.00047,60]
[331259002,1720167701738,-397.26723805,0.00047,90]
[331259003,1720167701764,-427.111,0.00047,30]
[331259004,1720167701791,-150.0,0.00047,30]
[331259005,1720167701820,-2100.0,0.00047,30]
[331259006,1720167701846,-382.82688,0.00047,35]
[331259007,1720167701872,-152.0,0.00047,60]
[331259008,1720167701899,-382.82688,0.00047,35]
[331259009,1720167701926,-382.82689,0.00047,35]
[331259010,1720167701953,-382.82688,0.00047,35]
[331259011,1720167701980,-382.82689,0.00047,35]
[331259012,1720167702006,-382.82688,0.00047,35]
[331259013,1720167702035,-2851.75598977,0.0004701,120]
[331259014,1720167702063,-500.0,0.00047123,120]
[331259015,1720167702092,-183.84444444,0.00047123,120]
[331259016,1720167702120,-500.0,0.00047181,30]
[331259017,1720167702149,-6139.2,0.00047202,117]
[331259018,1720167702176,-500000.0,0.0004725,120]
[331259019,1720167702203,-150.0,0.00047275,120]
[331259020,1720167702231,-151.0,0.00047397,120]
[331259021,1720167702256,-264.63971434,0.0004748,120]
[331259022,1720167702284,-500000.0,0.000475,120]
[331259023,1720167702312,-500.0,0.00047671,120]
[331259024,1720167702337,-500000.0,0.0004775,120]
[331259025,1720167702362,-284.75186231,0.000478,120]
[331259026,1720167702388,-183.84444444,0.00047836,120]
[331259027,1720167702415,-500.0,0.00047889,30]
[331259028,1720167702440,-3000.0,0.00047945,120]
[331259029,1720167702468,-2945.59,0.00047945,120]
[331259030,1720167702494,-154.8785672,0.0004798,120]
[331259031,1720167702520,-1000.0,0.00047999,120]
[331259032,1720167702550,-50000.0,0.00048,38]
[331259033,1720167702578,-50000.0,0.00048,48]
[331259034,1720167702604,-930.0,0.00048,120]
[331259035,1720167702631,-1000.0,0.00048,120]
[331259036,1720167702658,-803.0,0.00048,120]
[331259037,1720167702684,-900.0,0.00048,120]
[331259038,1720167702713,-1227.38,0.00048,120]
[331259039,1720167702743,-152.40557599,0.00048,120]
[331259040,1720167702773,-877394.51068533,0.00048,120]
[331259041,1720167707602,-1245.78959228,0.000409,120]
[331259042,1720167707629,-1245.78959228,0.000409,120]
[331259043,1720167707659,-1217.15098656,0.00045356,30]
[331259044,1720167707692,-1833.53765437,0.000475,120]
[331259045,1720167707720,-122605.48931467,0.00048,120]
[331259046,1720167707747,-200.0,0.00048,120]
[331259047,1720167707772,-29995.857212,0.00048,120]
[331259048,1720167707798,-9806.91401225,0.00048,120]
[331259049,1720167707824,-6091.0,0.00048,120]
[331259050,1720167707849,-500000.0,0.00048,120]
[331259051,1720167707875,-1518.44071836,0.00048,120]
[331259052,1720167707902,-610.0,0.00048,120]
[331259053,1720167707926,-150.0,0.00048,30]
[331259054,1720167707952,-500.0,0.00048219,120]
[331259055,1720167707978,-500000.0,0.0004825,120]
[331259056,1720167708005,-150.0,0.00048268,120]
[331259057,1720167708032,-500000.0,0.000485,120]
[331259058,1720167708061,-183.84444444,0.00048548,120]
[331259059,1720167708087,-500.0,0.00048607,30]
[331259060,1720167708115,-151.0,0.0004863,120]
[331259061,1720167708142,-500000.0,0.0004875,120]
[331259062,1720167708173,-631.24495087,0.00048767,120]
[331259063,1720167708200,-1000.0,0.000488,60]
[331259064,1720167708227,-29459.68210892,0.000488,90]
[331259065,1720167708256,-26853.02899996,0.000488,90]
[331259066,1720167708282,-883.84175501,0.000488,90]
[331259067,1720167708310,-365449.25884676,0.000488,90]
[331259068,1720167708336,-60728.81629436,0.000488,90]
[331259069,1720167708363,-495493.35613172,0.000488,90]
[331259070,1720167708389,-253201.14908099,0.000488,90]
[331259071,1720167708415,-268718.03793886,0.000488,90]
[331259072,1720167708441,-18299.60026121,0.000488,90]
[331259073,1720167708468,-37659.57833813,0.000488,90]
[331259074,1720167708495,-15888.40691091,0.000488,90]
[331259075,1720167708521,-247729.18485509,0.000488,90]
[331259076,1720167712176,-1245.78959228,0.000409,120]
[331259077,1720167712218,-252269.81514491,0.000488,90]
[331259078,1720167712246,-420981.11233678,0.000488,90]
[331259079,1720167712274,-4081.61037205,0.000488,90]
[331259080,1720167712300,-7862.45089494,0.000488,90]
[331259081,1720167712340,-7304.855818,0.000488,90]
[331259082,1720167712368,-1192.48739224,0.000488,90]
[331259083,1720167712395,-35959.12359738,0.000488,90]
[331259084,1720167712423,-555.15884826,0.000488,120]
[331259085,1720167712452,-231.93867492,0.000489,120]
[331259086,1720167712480,-1000.0,0.00048987,75]
[331259087,1720167712508,-1966.77706099,0.00048999,120]
[331259088,1720167712539,-50000.0,0.00049,39]
[331259089,1720167712570,-50000.0,0.00049,49]
[331259090,1720167712599,-2045.0,0.00049,60]
[331259091,1720167712626,-1000.0,0.00049,60]
[331259092,1720167712654,-734.39551891,0.00049,30]
[331259093,1720167712682,-2000.0,0.00049,60]
[331259094,1720167712710,-563.0,0.00049,120]
[331259095,1720167712738,-500.37193496,0.00049,120]
[331259096,1720167712765,-984.0,0.00049,120]
[331259097,1720167712793,-1000000.0,0.00049,120]
[331259098,1720167712819,-3232.03194428,0.00049,120]
[331259099,1720167712845,-681.12149963,0.00049,120]
[331259100,1720167712873,-1000000.0,0.00049,120]
[331259101,1720167712901,-9760.0,0.00049,120]
[331259102,1720167712928,-770.13302834,0.00049,120]
[331259103,1720167712955,-2851.75598977,0.0004901,120]
[331259104,1720167712988,-1005.42,0.000492,35]
[331259105,1720167713017,-500000.0,0.0004925,120]
[331259106,1720167713047,-183.84444444,0.0004926,120]
[331259107,1720167713077,-300.0,0.00049315,30]
[331259108,1720167713106,-300.0,0.00049315,30]
[331259109,1720167713134,-300.0,0.00049315,30]
[331259110,1720167713168,-300.0,0.00049315,30]
[331259111,1720167713196,-300.0,0.00049315,30]
[331259112,1720167713224,-300.0,0.00049315,30]
[331259113,1720167713250,-300.0,0.00049315,30]
[331259114,1720167713277,-300.0,0.00049315,30]
[331259115,1720167713303,-300.0,0.00049315,30]
[331259116,1720167713331,-250.0,0.00049315,30]
[331259117,1720167713357,-260.0,0.00049315,30]
[331259118,1720167713386,-3000.0,0.00049315,120]
[331259119,1720167713417,-1688.0,0.00049315,120]
[331259120,1720167713446,-2945.59,0.00049315,120]
[331259121,1720167713473,-500.0,0.00049336,30]
[331259122,1720167713501,-1710.63366715,0.000494,120]
[331259123,1720167713528,-399999.0,0.0004944,120]
[331259124,1720167713557,-1688.0,0.00049452,120]
[331259125,1720167713586,-620.57542007,0.000495,120]
[331259126,1720167713616,-223676.0068197,0.000495,120]
[331259127,1720167717849,-1245.78959228,0.000409,120]
[331259128,1720167717881,-340.15269406,0.00045368,30]
[331259129,1720167717908,-963.1072,0.00045888,30]
[331259130,1720167717945,-276323.9931803,0.000495,120]
[331259131,1720167717972,-150.0,0.000495,30]
[331259132,1720167717999,-1688.0,0.00049589,120]
[331259133,1720167718026,-5087.21656,0.00049591,120]
[331259134,1720167718053,-1688.0,0.00049726,120]
[331259135,1720167718080,-2009.0,0.0004973,120]
[331259136,1720167718107,-500000.0,0.0004975,120]
[331259137,1720167718134,-500000.0,0.0004975,120]
[331259138,1720167718167,-578.32499262,0.000498,120]
[331259139,1720167718193,-507.69428437,0.000498,30]
[331259140,1720167718219,-1007552.34795159,0.000498,90]
[331259141,1720167718245,-253.60039057,0.000498,120]
[331259142,1720167718271,-1688.0,0.00049863,120]
[331259143,1720167718298,-151.0,0.00049863,120]
[331259144,1720167718325,-200.0,0.000499,120]
[331259145,1720167718351,-177.4999317,0.000499,120]
[331259146,1720167718377,-350000.0,0.000499,60]
[331259147,1720167718402,-25000.0,0.000499,120]
[331259148,1720167718429,-183.84444444,0.00049973,120]
[331259149,1720167718457,-1000.0,0.00049999,120]
[331259150,1720167718486,-50000.0,0.0005,50]
[331259151,1720167718516,-50000.0,0.0005,40]
[331259152,1720167718543,-1007.6106544,0.0005,30]
[331259153,1720167718571,-150.0,0.0005,120]
[331259154,1720167718599,-1218.19566131,0.0005,120]
[331259155,1720167718629,-804.39890555,0.0005,120]
[331259156,1720167718658,-231.75528259,0.0005,120]
[331259157,1720167718686,-1000.0,0.0005,120]
[331259158,1720167718714,-800.0,0.0005,120]
[331259159,1720167718744,-1413.20687653,0.0005,120]
[331259160,1720167718770,-1000.0,0.0005,100]
[331259161,1720167718797,-150.0,0.0005,120]
[331259162,1720167718825,-1676.24903,0.0005,120]
[331259163,1720167718853,-6987.0,0.0005,120]
[331259164,1720167718880,-1000000.0,0.0005,120]
[331259165,1720167718907,-773.12009395,0.0005,120]
[331259166,1720167718935,-13006.95773569,0.0005,120]
[331259167,1720167718964,-647.07778795,0.0005,120]
[331259168,1720167718991,-5000.0,0.0005,120]
[331259169,1720167719019,-187346.8567501,0.0005,120]
[331259170,1720167741753,-26687.1762823,0.0003,30]
[331259171,1720167741849,-1245.78959228,0.000409,120]
[331259172,1720167741896,-1245.78959228,0.000409,120]
[331259173,1720167741941,-1245.78959228,0.000409,120]
[331259174,1720167741986,-1245.78959228,0.000409,120]
[331259175,1720167742032,-1245.78959228,0.000409,120]
[331259176,1720167742076,-324.77481369,0.00042616,30]
[331259177,1720167742123,-202.00972968,0.00045539,60]
[331259178,1720167742168,-705.68905,0.00045688,30]
[331259179,1720167742214,-705.68905,0.00046088,30]
[331259180,1720167742263,-173.0,0.00049,120]
[331259181,1720167742306,-25000.0,0.000499,120]
[331259182,1720167742351,-195.56371829,0.00049999,120]
[331259183,1720167742393,-312653.1432499,0.0005,120]
[331259184,1720167742435,-200.0,0.0005,120]
[331259185,1720167742478,-200.0,0.0005,120]
[331259186,1720167742516,-16149.25677,0.0005,120]
[331259187,1720167742556,-200.0,0.0005,120]
[331259188,1720167742601,-200.0,0.0005,120]
[331259189,1720167742654,-200.0,0.0005,120]
[331259190,1720167742696,-200.0,0.0005,120]
[331259191,1720167742738,-200.0,0.0005,120]
[331259192,1720167742779,-200.0,0.0005,120]
[331259193,1720167742821,-27313.54880991,0.0005,120]
[331259194,1720167742864,-200.0,0.0005,120]
[331259195,1720167742910,-200.0,0.0005,120]
[331259196,1720167742952,-155.10134907,0.0005,60]
[331259197,1720167742995,-500000.0,0.0005,120]
[331259198,1720167743035,-1327.6596242,0.0005,120]
[331259199,1720167743075,-200.0,0.0005,120]
[331259200,1720167743114,-1308.2224296,0.0005,120]
[331259201,1720167743154,-200.0,0.0005,120]
[331259202,1720167743196,-200.0,0.0005,120]
[331259203,1720167743237,-200.0,0.0005,120]
[331259204,1720167743276,-7836.00420409,0.0005,120]
[331259205,1720167743317,-173.52192795,0.0005,120]
[331259206,1720167743356,-1688.0,0.0005,120]
[331259207,1720167743394,-200.0,0.0005,120]
[331259208,1720167743587,-150.0,0.0005,30]
[331259209,1720167743644,-437.19779468,0.00050076,30]
[331259210,1720167743687,-1688.0,0.00050136,120]
[331259211,1720167743728,-1688.0,0.00050273,120]
[331259212,1720167743768,-1688.0,0.0005041,120]
[331259213,1720167743810,-6653.4,0.00050453,117]
[331259214,1720167743852,-1688.0,0.00050547,120]
[331259215,1720167743892,-3000.0,0.00050684,120]
[331259216,1720167743932,-1688.0,0.00050684,120]
[331259217,1720167743974,-2945.59,0.00050684,120]
[331259218,1720167744015,-183.84444444,0.00050685,120]
[331259219,1720167744056,-1688.0,0.00050821,120]
[331259220,1720167744100,-552.47117412,0.0005089,120]
[331259221,1720167744141,-1688.0,0.00050958,120]
[331259222,1720167744191,-1005.42,0.0005097,49]
[331259223,1720167744232,-1000.0,0.00050999,120]
[331259224,1720167744274,-50000.0,0.00051,51]
[331259225,1720167744317,-25000.0,0.00051,120]
[331259226,1720167744358,-150.0,0.00051,40]
[331259227,1720167744399,-10000.0,0.00051,120]
[331259228,1720167744440,-1000000.0,0.00051,120]
[331259229,1720167744482,-400000.0,0.00051,30]
[331259230,1720167744523,-10000.0,0.00051,120]
[331259231,1720167744564,-12289.45,0.00051,120]
[331259232,1720167744609,-2851.75598977,0.0005101,120]
[331259233,1720167744651,-1688.0,0.00051095,120]
[331259234,1720167744694,-151.0,0.00051096,120]
[331259235,1720167744742,-1688.0,0.00051232,120]
[331259236,1720167744785,-1688.0,0.00051369,120]
[331259237,1720167744828,-183.84444444,0.00051397,120]
[331259238,1720167744871,-1000000.0,0.000515,120]
[331259239,1720167744913,-1688.0,0.00051506,120]
[331259240,1720167744957,-1688.0,0.00051643,120]
[331259241,1720167745001,-2477.55994657,0.00051655,120]
[331259242,1720167745043,-709.35483883,0.00051655,30]
[331259243,1720167745084,-1688.0,0.0005178,120]
[331259244,1720167745127,-100000.58111082,0.000518,30]
[331259245,1720167745169,-1688.0,0.00051917,120]
[331259246,1720167745211,-173.0,0.00051951,120]
[331259247,1720167745252,-1000.0,0.00051999,120]
[331259248,1720167745295,-50000.0,0.00052,52]
[331259249,1720167745336,-1000000.0,0.00052,120]
[331259250,1720167745376,-15000.0,0.00052,30]
[331259251,1720167745419,-1000.0,0.00052,120]
[331259252,1720167745458,-150.0,0.00052,60]
[331259253,1720167745499,-700.0,0.00052,120]
[331259254,1720167745538,-500.0,0.00052,120]
[331259255,1720167745578,-154.82108298,0.00052,120]
[331259256,1720167745618,-2000.0,0.00052,30]
[331259257,1720167745659,-2000.0,0.00052,30]
[331259258,1720167745703,-2000.0,0.00052,30]
[331259259,1720167745745,-2000.0,0.00052,30]
[331259260,1720167745787,-2000.0,0.00052,30]
[331259261,1720167745832,-2000.0,0.00052,30]
[331259262,1720167745875,-2000.0,0.00052,30]
[331259263,1720167745916,-2000.0,0.00052,30]
[331259264,1720167745959,-2000.0,0.00052,30]
[331259265,1720167746000,-2000.0,0.00052,30]
[331259266,1720167746040,-2000.0,0.00052,30]
[331259267,1720167746080,-2000.0,0.00052,30]
[331259268,1720167746120,-2000.0,0.00052,30]
[331259269,1720167746161,-2000.0,0.00052,30]
[331259270,1720167746201,-2000.0,0.00052,30]
[331259271,1720167746243,-316121.40020327,0.00052,120]
[331259272,1720167751476,160.0,0.00031597,30]
[331259273,1720167762969,-668.7275497,0.00025,30]
[331259274,1720167763043,-544.84619007,0.0003,30]
[331259275,1720167763091,-544.84619007,0.0003,30]
[331259276,1720167763185,-453.5252403,0.00039,120]
[331259277,1720167763239,-1245.78959228,0.000409,120]
[331259278,1720167763281,-1245.78959228,0.000409,120]
[331259279,1720167763324,-1245.78959228,0.000409,120]
[331259280,1720167763367,-1245.78959228,0.000409,120]
[331259281,1720167763408,-600.0,0.00041116,30]
[331259282,1720167763449,-2100.0,0.00041116,30]
[331259283,1720167763491,-600.0,0.00041664,30]
[331259284,1720167763534,-2100.0,0.00041664,30]
[331259285,1720167763577,-600.0,0.00042212,30]
[331259286,1720167763621,-2100.0,0.00042212,30]
[331259287,1720167763670,-1355.1396273,0.00042616,90]
[331259288,1720167763713,-600.0,0.0004276,30]
[331259289,1720167763758,-600.0,0.00043308,30]
[331259290,1720167763802,-600.0,0.00043856,30]
[331259291,1720167763844,-600.0,0.00044404,30]
[331259292,1720167763897,-14258.77994887,0.0004784,60]
[331259293,1720167763945,-1359.90786574,0.0005101,120]
[331259294,1720167763991,-606.53708073,0.00051655,120]
[331259295,1720167764036,-267953.98864674,0.00051655,60]
[331259296,1720167764079,-683878.59979673,0.00052,120]
[331259297,1720167764123,-1000000.0,0.00052,120]
[331259298,1720167764166,-150.0,0.00052,30]
[331259299,1720167764210,-513.96890997,0.00052054,120]
[331259300,1720167764253,-1688.0,0.00052054,120]
[331259301,1720167764296,-1283.23,0.00052055,90]
[331259302,1720167764340,-183.84444444,0.0005211,120]
[331259303,1720167764381,-421.36565373,0.00052191,120]
[331259304,1720167764424,-151.0,0.00052329,120]
[331259305,1720167764466,-1000000.0,0.000525,120]
[331259306,1720167764507,-1005.42,0.0005274,63]
[331259307,1720167764550,-183.84444444,0.00052822,120]
[331259308,1720167764590,-385861.47181081,0.000529,60]
[331259309,1720167764633,-50000.0,0.00053,53]
[331259310,1720167764676,-102147.93,0.00053,30]
[331259311,1720167764721,-10000.0,0.00053,120]
[331259312,1720167764766,-20070.36671728,0.00053,120]
[331259313,1720167764809,-1000000.0,0.00053,120]
[331259314,1720167765021,-10000.0,0.00053,120]
[331259315,1720167765070,-429231.50151396,0.000535,120]
[331259316,1720167781954,-678.94989738,0.00038299,30]
[331259317,1720167781983,-270.64567808,0.0004,30]
[331259318,1720167782010,-1245.78959228,0.000409,120]
[331259319,1720167782038,-1245.78959228,0.000409,120]
[331259320,1720167782066,-1245.78959228,0.000409,120]
[331259321,1720167782092,-1245.78959228,0.000409,120]
[331259322,1720167782119,-191.30170802,0.00041987,30]
[331259323,1720167782146,-2086.46,0.00042465,30]
[331259324,1720167782175,-2100.0,0.0004276,30]
[331259325,1720167782204,-2100.0,0.00043308,30]
[331259326,1720167782230,-500.0,0.00043506,30]
[331259327,1720167782258,-2086.46,0.00043835,120]
[331259328,1720167782284,-2100.0,0.00043856,30]
[331259329,1720167782311,-500.0,0.00044054,30]